bitfinex-derivatives/quotes_BNBF0:USTF0_20250130
["timestamp","ask_amount","ask_price","bid_price","bid_amount"]
[1738219243899,1.1044254,678.2,677.41,0.29524217]
[1738219246601,1.10238555,678.4,677.41,0.29524217]
[1738219246602,1.1044254,678.16,677.41,0.29524217]
[1738219249308,1.1044254,678.18,677.41,0.29524217]
[1738219253106,1.1044254,678.15,677.41,0.29524217]
[1738219258912,1.1044254,678.16,677.41,0.29524217]
[1738219260914,0.27110347,678.15,677.41,0.29524217]
[1738219262113,0.27110347,678.16,677.41,0.29524217]
[1738219262310,0.27110272,678.15,677.41,0.29524217]
[1738219262513,1.1044254,678.17,677.41,0.29524217]
[1738219262808,0.2711025,678.16,677.41,0.29524217]
[1738219263316,1.1044254,678.17,677.41,0.29524217]
[1738219263516,0.27109993,678.16,677.41,0.29524217]
[1738219264417,1.1044254,678.17,677.41,0.29524217]
[1738219265312,1.1044254,678.15,677.41,0.29524217]
[1738219268624,2.25070383,678.66,677.41,0.29524217]
[1738219268625,1.1044254,678.28,677.41,0.29524217]
[1738219271431,1.1044254,678.26,677.41,0.29524217]
[1738219276628,0.27108825,678.25,677.41,0.29524217]
[1738219278438,0.27108701,678.24,677.41,0.29524217]
[1738219278635,0.27108701,678.25,677.41,0.29524217]
[1738219278839,1.1044254,678.26,677.41,0.29524217]
[1738219279030,0.27108859,678.25,677.41,0.29524217]
[1738219279231,1.1044254,678.18,677.41,0.29524217]
[1738219282440,1.1044254,678.19,677.41,0.29524217]
[1738219285535,1.1044254,678.15,677.41,0.29524217]
[1738219289441,1.10238555,678.34,677.41,0.29524217]
[1738219289442,1.1044254,678.14,677.41,0.29524217]
[1738219292850,1.1044254,678.08,677.41,0.29524217]
[1738219294952,2.25070383,678.59,677.41,0.29524217]
[1738219294953,1.1044254,678.11,677.41,0.29524217]
[1738219298656,1.1044254,678.25,677.41,0.29524217]
[1738219301448,0.27114502,678.24,677.41,0.29524217]
[1738219301651,1.1044254,678.32,677.41,0.29524217]
[1738219301850,0.27114322,678.31,677.41,0.29524217]
[1738219304161,1.1044254,678.23,677.41,0.29524217]
[1738219304554,0.27114322,678.22,677.41,0.29524217]
[1738219306059,0.27114177,678.21,677.41,0.29524217]
[1738219306252,0.27114177,678.2,677.41,0.29524217]
[1738219306458,0.27114177,678.19,677.41,0.29524217]
[1738219306651,0.27114177,678.18,677.41,0.29524217]
[1738219306856,0.27114177,678.22,677.41,0.29524217]
[1738219307058,0.27114177,678.21,677.41,0.29524217]
[1738219307254,0.27114177,678.2,677.41,0.29524217]
[1738219307454,0.27114177,678.19,677.41,0.29524217]
[1738219307653,0.27114177,678.18,677.41,0.29524217]
[1738219307859,0.27114177,678.17,677.41,0.29524217]
[1738219308058,1.1044254,678.21,677.41,0.29524217]
[1738219308059,0.27114177,678.16,677.41,0.29524217]
[1738219308259,0.27114177,678.15,677.41,0.29524217]
[1738219308453,0.27114177,678.14,677.41,0.29524217]
[1738219308653,0.27114177,678.13,677.41,0.29524217]
[1738219308856,0.27114177,678.2,677.41,0.29524217]
[1738219310061,1.1044254,678.14,677.41,0.29524217]
[1738219310261,0.27114177,678.13,677.41,0.29524217]
[1738219310955,0.27115044,678.12,677.41,0.29524217]
[1738219311159,0.27115044,678.11,677.41,0.29524217]
[1738219311360,0.27115044,678.13,677.41,0.29524217]
[1738219311660,0.27115044,678.12,677.41,0.29524217]
[1738219311854,0.27115044,678.11,677.41,0.29524217]
[1738219312054,0.27115044,678.13,677.41,0.29524217]
[1738219312257,0.27115044,678.12,677.41,0.29524217]
[1738219312458,0.27115044,678.11,677.41,0.29524217]
[1738219312756,0.27115044,678.1,677.41,0.29524217]
[1738219312957,0.27115044,678.09,677.41,0.29524217]
[1738219313161,0.27115044,678.08,677.41,0.29524217]
[1738219313362,0.27115044,678.07,677.41,0.29524217]
[1738219313660,0.27115044,678.06,677.41,0.29524217]
[1738219313860,0.27115044,678.12,677.41,0.29524217]
[1738219314056,0.27115044,678.11,677.41,0.29524217]
[1738219314253,0.27115044,678.1,677.41,0.29524217]
[1738219314457,0.27115044,678.09,677.41,0.29524217]
[1738219314661,1.1044254,678.11,677.41,0.29524217]
[1738219314858,0.27115044,678.1,677.41,0.29524217]
[1738219315862,0.27114996,678.09,677.41,0.29524217]
[1738219316062,0.27114996,678.08,677.41,0.29524217]
[1738219316262,0.27114996,678.07,677.41,0.29524217]
[1738219316457,0.27114996,678.06,677.41,0.29524217]
[1738219316664,1.1044254,678.11,677.41,0.29524217]
[1738219316665,0.27114996,678.05,677.41,0.29524217]
[1738219316959,1.1044254,678.11,677.41,0.29524217]
[1738219317165,0.27115266,678.1,677.41,0.29524217]
[1738219317465,0.2711527,678.09,677.41,0.29524217]
[1738219319859,1.3755781,678.09,677.41,0.29524217]
[1738219320058,0.2711527,678.08,677.41,0.29524217]
[1738219321968,1.1044254,678.09,677.41,0.29524217]
[1738219322265,0.27115181,678.08,677.41,0.29524217]
[1738219322470,1.37557721,678.08,677.41,0.29524217]
[1738219322760,0.27115181,678.07,677.41,0.29524217]
[1738219323668,1.1044254,678.08,677.41,0.29524217]
[1738219323863,0.27115225,678.07,677.41,0.29524217]
[1738219324264,1.1044254,678.08,677.41,0.29524217]
[1738219325270,1.1044254,678.06,677.41,0.29524217]
[1738219328671,1.1044254,678.31,677.41,0.29524217]
[1738219332471,1.1044254,678.32,677.41,0.29524217]
[1738219336277,1.1044254,678.23,677.41,0.29524217]
[1738219338081,0.27114322,678.22,677.41,0.29524217]
[1738219338373,1.1044254,678.23,677.41,0.29524217]
[1738219339686,8.82436483,686.38,677.41,0.29524217]
[1738219339687,1.1044254,678.12,677.41,0.29524217]
[1738219342387,1.1044254,678.19,677.41,0.29524217]
[1738219345889,1.1044254,678.2,677.41,0.29524217]
[1738219348188,0.27114102,678.19,677.41,0.29524217]
[1738219348786,1.1044254,678.17,677.41,0.29524217]
[1738219348983,0.27114102,678.16,677.41,0.29524217]
[1738219351892,1.1044254,678.17,677.41,0.29524217]
[1738219351893,1.1044254,678.03,677.41,0.29524217]
[1738219355793,1.1044254,678.02,677.41,0.29524217]
[1738219358891,1.1044254,678.0,677.41,0.29524217]
[1738219361300,1.1044254,677.99,677.41,0.29524217]
[1738219364196,1.1044254,677.98,677.41,0.29524217]
[1738219377308,1.10238555,678.24,677.41,0.29524217]
[1738219377309,1.1044254,677.99,677.41,0.29524217]
[1738219387317,1.1044254,677.98,677.41,0.29524217]
[1738219393621,1.1044254,678.02,677.41,0.29524217]
[1738219396521,1.1044254,678.03,677.41,0.29524217]
[1738219399922,1.1044254,678.09,677.41,0.29524217]
[1738219403429,1.1044254,678.06,677.41,0.29524217]
[1738219407031,1.1044254,678.09,677.41,0.29524217]
[1738219409937,1.1044254,678.04,677.41,0.29524217]
[1738219412637,1.10238555,678.37,677.41,0.29524217]
[1738219412638,1.1044254,678.14,677.41,0.29524217]
[1738219415944,1.1044254,678.1,677.41,0.29524217]
[1738219417945,0.27124433,678.09,676.97,1.09765334]
[1738219418142,0.27124433,678.09,676.98,0.2954297]
[1738219419647,0.27124433,678.25,676.98,0.2954297]
[1738219419846,0.27124433,678.24,676.98,0.2954297]
[1738219420147,0.27124433,678.23,676.98,0.2954297]
[1738219420348,0.27124433,678.22,676.98,0.2954297]
[1738219420542,0.27124433,678.25,676.98,0.2954297]
[1738219420748,0.27124983,678.24,676.98,0.2954297]
[1738219420947,0.27124983,678.25,676.98,0.2954297]
[1738219422251,1.1044254,678.04,676.98,0.2954297]
[1738219422448,0.27124983,678.03,676.98,0.2954297]
[1738219425251,1.1044254,678.02,676.98,0.2954297]
[1738219425446,0.27124983,678.01,676.98,0.2954297]
[1738219427451,0.27124983,678.01,676.99,1.54082295]
[1738219427653,0.27124983,678.01,677.0,0.29542097]
[1738219428448,0.27124983,678.0,677.0,0.29542097]
[1738219428654,0.27124983,677.99,677.0,0.29542097]
[1738219428854,0.27124983,678.04,677.0,0.29542097]
[1738219429049,0.27124983,678.03,677.0,0.29542097]
[1738219429253,0.27124983,678.04,677.0,0.29542097]
[1738219431552,1.1044254,678.03,677.0,0.29542097]
[1738219431750,0.27124983,678.02,677.0,0.29542097]
[1738219434458,1.1044254,678.0,677.0,0.29542097]
[1738219434656,0.27124983,677.99,677.0,0.29542097]
[1738219437660,1.1044254,677.98,677.0,0.29542097]
[1738219437854,0.27124983,677.97,677.0,0.29542097]
[1738219438956,0.27124526,677.96,677.0,0.29542097]
[1738219439152,0.27124526,677.95,677.0,0.29542097]
[1738219439458,0.27124526,677.94,677.0,0.29542097]
[1738219439757,0.27124526,677.93,677.0,0.29542097]
[1738219439957,0.27124526,677.97,677.0,0.29542097]
[1738219440158,0.27124526,677.96,677.0,0.29542097]
[1738219440354,0.27124526,677.97,677.0,0.29542097]
[1738219440659,0.27124273,677.96,677.0,0.29542097]
[1738219440959,0.27124273,677.95,677.0,0.29542097]
[1738219441157,0.27124273,677.97,677.0,0.29542097]
[1738219441458,0.27124273,677.96,677.0,0.29542097]
[1738219441658,0.27124273,677.97,677.0,0.29542097]
[1738219444956,0.27124273,678.02,677.0,0.29542097]
[1738219445158,0.27124273,678.01,677.0,0.29542097]
[1738219445359,0.27124273,678.02,677.0,0.29542097]
[1738219445560,0.27124273,678.01,677.0,0.29542097]
[1738219445759,0.27124273,678.02,677.0,0.29542097]
[1738219447659,1.1044254,678.01,677.0,0.29542097]
[1738219447860,0.27124273,678.0,677.0,0.29542097]
[1738219449860,1.1044254,677.99,677.0,0.29542097]
[1738219450064,0.27124273,677.98,677.0,0.29542097]
[1738219451966,1.1044254,677.99,677.0,0.29542097]
[1738219452165,0.27125345,677.98,677.0,0.29542097]
[1738219452668,1.1044254,677.83,677.0,0.29542097]
[1738219453470,0.27124642,677.82,677.0,0.29542097]
[1738219453768,0.27124978,677.81,677.0,0.29542097]
[1738219453966,0.27124978,677.82,677.0,0.29542097]
[1738219454167,1.1044254,677.83,677.0,0.29542097]
[1738219454468,0.27125001,677.82,677.0,0.29542097]
[1738219455668,1.1044254,677.72,677.0,0.29542097]
[1738219458769,1.1044254,677.71,677.0,0.29542097]
[1738219463572,1.1044254,677.8,677.0,0.29542097]
[1738219465872,1.1044254,677.88,677.0,0.29542097]
[1738219469676,1.1044254,677.91,677.0,0.29542097]
[1738219472069,0.27127091,677.9,677.0,0.29542097]
[1738219473473,1.1044254,677.89,677.0,0.29542097]
[1738219473669,0.27127091,677.88,677.0,0.29542097]
[1738219475471,0.2712776,677.87,677.0,0.29542097]
[1738219475677,0.2712776,677.88,677.0,0.29542097]
[1738219476377,1.1044254,677.74,677.0,0.29542097]
[1738219479382,1.1044254,677.73,677.0,0.29542097]
[1738219482085,1.1044254,677.76,677.0,0.29542097]
[1738219484590,1.1044254,677.79,677.0,0.29542097]
[1738219487193,1.1044254,677.77,677.0,0.29542097]
[1738219490096,1.1044254,677.76,677.0,0.29542097]
[1738219492690,1.1044254,677.83,677.0,0.29542097]
[1738219495398,1.1044254,677.84,677.0,0.29542097]
[1738219497997,1.1044254,677.83,677.0,0.29542097]
[1738219501002,1.1044254,677.84,677.0,0.29542097]
[1738219503404,1.1044254,677.86,677.0,0.29542097]
[1738219507611,1.1044254,677.89,677.0,0.29542097]
[1738219510913,1.1044254,677.99,677.0,0.29542097]
[1738219513113,1.1044254,678.04,677.0,0.29542097]
[1738219516413,1.1044254,678.08,677.0,0.29542097]
[1738219516808,0.2712536,678.07,677.0,0.29542097]
[1738219520221,1.10238555,678.04,677.0,0.29542097]
[1738219520421,1.1044254,677.86,677.0,0.29542097]
[1738219520920,0.27124554,677.85,677.0,0.29542097]
[1738219521620,1.1044254,677.86,677.0,0.29542097]
[1738219522521,0.2712509,677.85,677.0,0.29542097]
[1738219523315,0.2712509,677.88,677.0,0.29542097]
[1738219523521,0.2712509,677.87,677.0,0.29542097]
[1738219523720,0.2712509,677.88,677.0,0.29542097]
[1738219523916,1.1044254,677.89,677.0,0.29542097]
[1738219526224,1.1044254,677.98,677.0,0.29542097]
[1738219526421,0.27125645,677.97,677.0,0.29542097]
[1738219527426,1.1044254,677.98,677.0,0.29542097]
[1738219527625,0.27125512,677.97,677.0,0.29542097]
[1738219529126,0.27125512,677.99,677.0,0.29542097]
[1738219529420,0.27125512,677.98,677.0,0.29542097]
[1738219529622,0.27125512,677.99,677.0,0.29542097]
[1738219529821,0.27125512,677.98,677.0,0.29542097]
[1738219530021,0.27125512,677.99,677.0,0.29542097]
[1738219530223,0.27125512,677.98,677.0,0.29542097]
[1738219530527,0.27125512,677.97,677.0,0.29542097]
[1738219530725,0.27125512,677.99,677.0,0.29542097]
[1738219530927,0.271248,677.98,677.0,0.29542097]
[1738219531126,0.271248,677.99,677.0,0.29542097]
[1738219531325,0.271248,677.98,677.0,0.29542097]
[1738219531527,0.271248,677.99,677.0,0.29542097]
[1738219531726,1.3756734,677.98,677.0,0.29542097]
[1738219531929,0.271248,677.97,677.0,0.29542097]
[1738219532521,1.1044254,677.98,677.0,0.29542097]
[1738219532725,0.27124885,677.97,677.0,0.29542097]
[1738219534229,1.1044254,677.98,677.0,0.29542097]
[1738219534425,0.27125771,677.97,677.0,0.29542097]
[1738219535326,1.1044254,677.93,677.0,0.29542097]
[1738219535527,0.27125771,677.92,677.0,0.29542097]
[1738219535928,0.27125867,677.91,677.0,0.29542097]
[1738219536129,1.1044254,677.93,677.0,0.29542097]
[1738219536130,0.27125867,677.9,677.0,0.29542097]
[1738219536430,0.27125867,677.89,677.0,0.29542097]
[1738219536629,0.27125867,677.88,677.0,0.29542097]
[1738219536827,0.27125867,677.87,677.0,0.29542097]
[1738219537132,0.27125867,677.86,677.0,0.29542097]
[1738219537331,0.27125867,677.92,677.0,0.29542097]
[1738219537533,0.27125867,677.91,677.0,0.29542097]
[1738219537832,0.27125867,677.92,677.0,0.29542097]
[1738219538033,0.27125867,677.91,677.0,0.29542097]
[1738219538328,0.27125867,677.9,677.0,0.29542097]
[1738219538529,1.1044254,677.83,677.0,0.29542097]
[1738219538732,0.27125867,677.82,677.0,0.29542097]
[1738219541429,1.1044254,677.79,677.0,0.29542097]
[1738219541737,0.27125867,677.78,677.0,0.29542097]
[1738219542534,1.1044254,677.79,677.0,0.29542097]
[1738219542734,0.27127324,677.78,677.0,0.29542097]
[1738219544336,1.1044254,677.77,677.0,0.29542097]
[1738219544530,0.27127324,677.76,677.0,0.29542097]
[1738219545738,1.1044254,677.77,677.0,0.29542097]
[1738219547034,1.1044254,677.74,677.0,0.29542097]
[1738219549140,1.1044254,677.87,677.0,0.29542097]
[1738219551837,0.27126179,677.86,677.0,0.29542097]
[1738219552642,0.27126179,677.85,677.0,0.29542097]
[1738219552842,0.27126179,677.84,677.0,0.29542097]
[1738219553042,0.27126179,677.88,677.0,0.29542097]
[1738219553240,0.27126179,677.87,677.0,0.29542097]
[1738219553445,0.27126179,677.86,677.0,0.29542097]
[1738219553644,0.27126179,677.88,677.0,0.29542097]
[1738219553845,0.27126179,677.87,677.0,0.29542097]
[1738219554046,1.1044254,677.89,677.0,0.29542097]
[1738219554047,0.27126179,677.88,677.0,0.29542097]
[1738219554242,0.27126179,677.87,677.0,0.29542097]
[1738219554437,0.27126179,677.88,677.0,0.29542097]
[1738219554639,0.27126179,677.87,677.0,0.29542097]
[1738219554839,0.27126179,677.88,677.0,0.29542097]
[1738219555144,0.27126179,677.87,677.0,0.29542097]
[1738219555345,0.27126179,677.86,677.0,0.29542097]
[1738219555539,0.27126179,677.88,677.0,0.29542097]
[1738219555738,0.27126179,677.87,677.0,0.29542097]
[1738219555943,0.27126179,677.86,677.0,0.29542097]
[1738219556139,1.1044254,677.74,677.0,0.29542097]
[1738219559955,1.1044254,677.73,677.0,0.29542097]
[1738219562856,1.1044254,677.78,677.0,0.29542097]
[1738219564758,0.27126657,677.77,677.0,0.29542097]
[1738219565259,1.1044254,677.78,677.0,0.29542097]
[1738219565655,1.1044254,677.76,677.0,0.29542097]
[1738219568956,2.25070383,678.32,677.0,0.29542097]
[1738219568957,1.1044254,677.71,677.0,0.29542097]
[1738219573660,1.1044254,677.79,677.0,0.29542097]
[1738219574760,0.27126766,677.78,677.0,0.29542097]
[1738219574960,1.1044254,677.79,677.0,0.29542097]
[1738219575161,0.27126795,677.78,677.0,0.29542097]
[1738219575862,1.1044254,677.79,677.0,0.29542097]
[1738219576562,1.10238555,677.97,677.0,0.29542097]
[1738219576563,1.1044254,677.73,677.0,0.29542097]
[1738219581961,1.1044254,677.72,677.0,0.29542097]
[1738219585566,2.25070383,678.22,677.0,0.29542097]
[1738219585567,1.1044254,677.78,677.0,0.29542097]
[1738219588873,0.76073725,678.36,677.0,0.29542097]
[1738219588874,1.1044254,677.84,677.0,0.29542097]
[1738219592375,1.1044254,677.96,677.0,0.29542097]
[1738219595974,1.1044254,677.97,677.0,0.29542097]
[1738219599075,1.1044254,677.96,677.0,0.29542097]
[1738219599971,0.27124333,677.95,677.0,0.29542097]
[1738219602378,1.1044254,677.84,677.0,0.29542097]
[1738219605376,1.1044254,677.83,677.0,0.29542097]
[1738219610576,0.27126548,677.82,677.0,0.29542097]
[1738219611584,1.37569088,677.82,677.0,0.29542097]
[1738219611783,0.27126548,677.81,677.0,0.29542097]
[1738219615986,1.1044254,677.76,677.0,0.29542097]
[1738219619592,1.1044254,677.75,677.0,0.29542097]
[1738219623893,1.1044254,677.76,677.0,0.29542097]
[1738219626995,1.1044254,677.75,677.0,0.29542097]
[1738219630804,1.1044254,677.74,677.0,0.29542097]
[1738219633407,1.1044254,677.76,677.0,0.29542097]
[1738219636810,1.1044254,677.69,677.0,0.29542097]
[1738219639213,1.1044254,677.93,677.0,0.29542097]
[1738219641713,0.27126202,677.92,677.0,0.29542097]
[1738219644613,0.27126138,677.91,677.0,0.29542097]
[1738219644816,0.27126138,677.92,677.0,0.29542097]
[1738219645016,0.27126138,677.91,677.0,0.29542097]
[1738219645215,0.27126138,677.9,677.0,0.29542097]
[1738219645415,0.27126138,677.89,677.0,0.29542097]
[1738219645616,0.27126138,677.88,677.0,0.29542097]
[1738219645816,0.27126138,677.87,677.0,0.29542097]
[1738219646020,1.1044254,677.71,677.0,0.29542097]
[1738219649412,1.10238555,678.0,677.0,0.29542097]
[1738219649413,1.1044254,677.7,677.0,0.29542097]
[1738219651317,1.1044254,677.7,676.96,0.29543843]
[1738219653419,1.1044254,677.68,676.96,0.29543843]
[1738219657423,1.1044254,677.68,676.97,0.25696191]
[1738219657623,1.1044254,678.18,676.98,0.2954297]
[1738219657822,0.27121334,678.17,676.99,0.25696191]
[1738219658017,0.27121334,678.17,677.0,0.29542097]
[1738219658222,0.27121334,678.17,677.01,0.25696191]
[1738219658423,0.27121334,678.17,677.02,0.29541224]
[1738219658724,0.27121334,678.17,677.03,0.25695835]
[1738219658925,1.1044254,678.18,677.02,0.29541224]
[1738219659125,0.27120221,678.17,677.03,0.25694767]
[1738219659626,0.27120249,678.16,677.04,0.25694797]
[1738219659826,0.27120249,678.17,677.03,0.25694797]
[1738219660024,0.27120249,678.17,677.02,0.29541224]
[1738219660025,0.27120249,678.16,677.04,0.25694797]
[1738219660219,0.27120249,678.17,677.03,0.25694797]
[1738219660426,1.1044254,678.18,677.02,0.29541224]
[1738219660427,0.27120249,678.16,677.04,0.25694797]
[1738219660620,0.27120249,678.17,677.05,0.29539915]
[1738219660825,1.1044254,677.9,677.06,0.25694797]
[1738219661027,1.1044254,677.9,677.07,0.29539043]
[1738219664626,1.1044254,677.99,677.07,0.29539043]
[1738219664831,0.27119738,677.98,677.07,0.29539043]
[1738219665130,1.1044254,677.99,677.07,0.29539043]
[1738219668131,1.1044254,678.05,677.07,0.29539043]
[1738219668333,0.27119551,678.04,677.07,0.29539043]
[1738219671334,1.1044254,678.05,677.07,0.29539043]
[1738219671631,5.2946189,684.69,677.07,0.29539043]
[1738219671632,0.27119564,678.04,677.07,0.29539043]
[1738219671831,0.27119564,678.1,677.07,0.29539043]
[1738219672131,0.27119564,678.09,677.07,0.29539043]
[1738219672325,0.27119564,678.1,677.07,0.29539043]
[1738219674334,1.1044254,678.09,677.07,0.29539043]
[1738219674533,0.27119564,678.08,677.07,0.29539043]
[1738219676935,1.1044254,678.05,677.07,0.29539043]
[1738219677129,0.27119564,678.04,677.07,0.29539043]
[1738219682440,1.1044254,678.05,677.07,0.29539043]
[1738219682636,0.27119406,678.04,677.07,0.29539043]
[1738219682835,1.1044254,678.05,677.07,0.29539043]
[1738219687341,1.1044254,678.13,677.07,0.29539043]
[1738219689543,0.27118733,678.12,677.07,0.29539043]
[1738219690140,1.1044254,678.07,677.07,0.29539043]
[1738219692046,0.27118705,678.06,677.07,0.29539043]
[1738219692645,0.27118705,678.06,677.08,0.25693278]
[1738219692844,0.27118705,678.06,677.09,0.2953817]
[1738219693543,1.1044254,677.98,677.09,0.2953817]
[1738219697245,2.25070383,678.61,677.09,0.2953817]
[1738219697246,1.1044254,678.08,677.09,0.2953817]
[1738219699948,0.27118379,678.07,677.09,0.2953817]
[1738219700549,1.1044254,677.99,677.09,0.2953817]
[1738219700748,0.27118379,677.98,677.09,0.2953817]
[1738219701945,1.1044254,677.99,677.1,0.25692615]
[1738219702349,0.2711803,677.98,677.1,0.25692615]
[1738219702551,0.2711803,677.98,677.11,0.29537298]
[1738219704249,0.2711803,677.98,677.11,1.39302632]
[1738219704250,1.1044254,677.91,677.11,1.39302632]
[1738219707454,1.1044254,677.91,677.11,0.29537298]
[1738219712962,1.1044254,677.9,677.11,1.39302632]
[1738219715867,1.1044254,678.09,677.11,0.29537298]
[1738219716766,0.27118107,678.08,677.11,0.29537298]
[1738219717966,0.27117913,678.07,677.11,0.29537298]
[1738219718167,0.27117913,678.06,677.11,0.29537298]
[1738219718364,0.27117913,678.08,677.11,0.29537298]
[1738219718668,1.1044254,677.94,677.11,0.29537298]
[1738219722373,1.32286266,678.4,677.11,0.29537298]
[1738219722374,1.1044254,677.89,677.13,1.09765334]
[1738219722570,1.1044254,677.89,677.14,0.29535989]
[1738219725572,1.1044254,678.46,677.14,0.29535989]
[1738219726365,0.27110674,678.45,677.14,0.29535989]
[1738219727272,0.27110674,678.45,677.15,0.25685395]
[1738219727472,0.27110674,678.45,677.17,0.29534681]
[1738219727666,0.27110674,678.45,677.18,0.25685395]
[1738219727870,1.1044254,678.46,677.2,0.29533372]
[1738219728168,0.27110734,678.45,677.21,0.25685364]
[1738219728373,0.27110734,678.45,677.22,0.295325]
[1738219728672,0.27110734,678.45,677.23,0.25685364]
[1738219728874,1.1044254,678.39,677.24,0.29531628]
[1738219729067,0.27110734,678.38,677.25,0.25685364]
[1738219729269,0.27110734,678.38,677.26,0.29530756]
[1738219729470,0.27110734,678.38,677.27,0.25685364]
[1738219729670,0.27110946,678.37,677.28,0.55215458]
[1738219729874,0.27110946,678.38,677.29,0.29529448]
[1738219730175,0.27110946,678.37,677.29,0.29529448]
[1738219730377,0.27110946,678.36,677.29,0.29529448]
[1738219730577,0.27110946,678.35,677.29,0.29529448]
[1738219730771,0.27110946,678.34,677.29,0.29529448]
[1738219730971,0.27110946,678.33,677.29,0.29529448]
[1738219731173,1.1044254,678.24,677.29,0.29529448]
[1738219731375,0.27110946,678.23,677.29,0.29529448]
[1738219734579,0.27110946,678.25,677.29,0.29529448]
[1738219734779,0.27110946,678.24,677.29,0.29529448]
[1738219734979,0.27110946,678.25,677.29,0.29529448]
[1738219735181,0.27110946,678.24,677.29,0.29529448]
[1738219735381,0.27110946,678.23,677.29,0.29529448]
[1738219735685,0.27110946,678.22,677.29,0.29529448]
[1738219735886,0.27110946,678.25,677.29,0.29529448]
[1738219736080,0.27110946,678.24,677.29,0.29529448]
[1738219736385,0.27110946,678.23,677.29,0.29529448]
[1738219736583,0.27110946,678.25,677.29,0.29529448]
[1738219736881,0.27110946,678.24,677.29,0.29529448]
[1738219737085,0.27110946,678.29,677.29,0.29529448]
[1738219737285,0.27110946,678.28,677.29,0.29529448]
[1738219737486,0.27110946,678.29,677.29,0.29529448]
[1738219737684,0.27110946,678.28,677.29,0.29529448]
[1738219737986,0.27110946,678.29,677.29,0.29529448]
[1738219738186,0.27110946,678.28,677.29,0.29529448]
[1738219738486,1.1044254,678.3,677.29,0.29529448]
[1738219738687,0.27112358,678.29,677.29,0.29529448]
[1738219740592,1.1044254,678.28,677.29,0.29529448]
[1738219740786,0.27112358,678.27,677.29,0.29529448]
[1738219741191,0.27111823,678.26,677.29,0.29529448]
[1738219741405,0.27111823,678.27,677.29,0.29529448]
[1738219741595,0.27111823,678.26,677.29,0.29529448]
[1738219741892,0.27111823,678.25,677.29,0.29529448]
[1738219742092,0.27111823,678.27,677.29,0.29529448]
[1738219742294,0.27111823,678.26,677.29,0.29529448]
[1738219742494,0.27111823,678.27,677.29,0.29529448]
[1738219742694,0.27111823,678.26,677.29,0.29529448]
[1738219742990,0.27111823,678.25,677.29,0.29529448]
[1738219743193,0.27111823,678.24,677.29,0.29529448]
[1738219743494,0.27111823,678.23,677.29,0.29529448]
[1738219743689,0.27111823,678.27,677.29,0.29529448]
[1738219743894,0.27111823,678.26,677.29,0.29529448]
[1738219744193,0.27111823,678.25,677.29,0.29529448]
[1738219744494,0.27111823,678.24,677.29,0.29529448]
[1738219745994,1.1044254,678.25,677.29,0.29529448]
[1738219746193,0.27112029,678.24,677.29,0.29529448]
[1738219747693,1.37554569,678.24,677.29,0.29529448]
[1738219747892,0.27112029,678.23,677.29,0.29529448]
[1738219749099,1.1044254,678.24,677.29,0.29529448]
[1738219750897,1.1044254,678.31,677.29,0.29529448]
[1738219751092,0.27112349,678.3,677.29,0.29529448]
[1738219753998,1.1044254,678.28,677.29,0.29529448]
[1738219754199,0.27112349,678.27,677.29,0.29529448]
[1738219757701,1.1044254,678.12,677.29,0.29529448]
[1738219760601,1.1044254,678.05,677.29,0.29529448]
[1738219766504,1.1044254,678.01,677.29,0.29529448]
[1738219769804,1.1044254,678.02,677.29,0.29529448]
[1738219784517,1.1044254,678.08,677.29,0.29529448]
[1738219784716,0.27117642,678.07,677.29,0.29529448]
[1738219784915,1.1044254,678.08,677.29,0.29529448]
[1738219785311,0.27117819,678.07,677.29,0.29529448]
[1738219787419,0.27117819,678.11,677.29,0.29529448]
[1738219787617,0.27117819,678.1,677.29,0.29529448]
[1738219787813,0.27117819,678.11,677.29,0.29529448]
[1738219788017,0.27117819,678.1,677.29,0.29529448]
[1738219788212,0.27117819,678.11,677.29,0.29529448]
[1738219788414,0.27117819,678.1,677.29,0.29529448]
[1738219788611,1.1044254,678.12,677.29,0.29529448]
[1738219788612,0.27117819,678.11,677.29,0.29529448]
[1738219788816,0.27117819,678.1,677.29,0.29529448]
[1738219789020,0.27117819,678.11,677.29,0.29529448]
[1738219789223,0.27117819,678.1,677.29,0.29529448]
[1738219789417,0.27117819,678.11,677.29,0.29529448]
[1738219789613,0.27117819,678.1,677.29,0.29529448]
[1738219789819,0.27117819,678.09,677.29,0.29529448]
[1738219790116,0.27117819,678.08,677.29,0.29529448]
[1738219790321,0.27117819,678.07,677.29,0.29529448]
[1738219790520,0.27117819,678.09,677.29,0.29529448]
[1738219790722,0.27117819,678.08,677.29,0.29529448]
[1738219790921,0.27117819,678.07,677.29,0.29529448]
[1738219791119,0.27117819,678.06,677.29,0.29529448]
[1738219791321,0.27117819,678.05,677.29,0.29529448]
[1738219791514,0.27117959,678.04,677.29,0.29529448]
[1738219791718,0.27117959,678.09,677.29,0.29529448]
[1738219791921,0.27117959,678.08,677.29,0.29529448]
[1738219792121,0.27117959,678.09,677.29,0.29529448]
[1738219792423,0.27117959,678.08,677.29,0.29529448]
[1738219792622,1.1044254,678.06,677.29,0.29529448]
[1738219793218,0.27115049,678.05,677.29,0.29529448]
[1738219793416,1.1044254,678.06,677.29,0.29529448]
[1738219795124,8.82436483,684.15,677.29,0.29529448]
[1738219795125,1.1044254,678.11,677.29,0.29529448]